Workbook

Sheet Cover Page
K2: Template version 25.1a (for incinerators) - 27/11/25
K4: Note that there is another version of this template available for co-incinerators
B8: Add photo
K13: Notes:
K14: This template may require adjustments by individual operators to meet specific reporting requirements as defined in the site Permit(s)
B29: Annual Performance Report 2025
B31: Permit EPR/BJ6178IX
B33: SUEZ R&R Kirklees EfW
B35: other name of facility (if applicable)
B37: Kirklees EfW
B39: Year: | C39: 2025
B41: Address: | C41: Diamond Street, Huddersfield, West Yorkshire HD1 6BZ
B43: Tel: | C43: 01484 448701
B45: Email: | C45: stephen.taylor@suez.com
B47: Prepared by: | C47: Steve Taylor | F47: Position: | G47: EIR Advisor
B49: Approved by: | C49: Mark Ryan | F49: Position: | G49: Plant Manager
B51: Version: | C51: 1
B53: Issue Date:

Sheet Facility Info
A1: =+'Cover Page'!$B$29 -> Annual Performance Report 2025 | E1: =+'Cover Page'!$B$33 -> SUEZ R&R Kirklees EfW
A3: Plant Description and Design | K3: Notes:
A5: This non-hazardous waste incinerator operates 24/7 and can receive up to 150,000 tonnes of municipal waste from Kirklees Council as well as commercial/trade waste. The plant has one furnace line with a processing capacity of 136,000 tonnes per annum. The heat produced by waste incineration is used to raise superheated steam which generates 9.5 MWh of electricity. Activities associated with the incineration are receipt and storage of municipal waste, production of steam and electricity, abatement of flue gas and handling of Incinerator Bottom Ash (IBA) and Air Pollution Control Residue (APCR). | K5: Include summary of plant design, design capacity, no. of combustion lines, electrical and heat capacity and any other general information that describes the facility, its location and purpose
A13: Summary of Operational Processes and Procedures
A15: Incoming waste is delivered to site by refuse collection vehicle. It is then checked in , weighed and delivered into the reception hall. RECEPTION HALL A large reception hall allows for refuse collection trucks to manoeuvre and tip waste safely. Air needed for combustion is drawn into the furnace from here so that odour and dust do not escape the building. BUNKER Waste vehicles reverse to a wheel stop and tip their loads into a large concrete bunker. Mixing of waste occurs as the crane driver sorts the waste looking for unsuitable material to be removed, and to improve the homogeneity of the incinerator feedstock. CONTROL ROOM The plant’s control room centralises the operation of all equipment, including the grab crane used to mix and load waste into a hopper that feeds the furnace. All on-site functions are monitored automatically and manually. Its systems verify in real time that equipment is functioning properly, continuously monitor the combustion gas, and maximise the efficiency of the entire EfW process. GRATE AND BOILER Waste is lifted into the charging hoppers by the crane. From here it falls into the furnace-charging chute and then onto the grate system for incineration. The thermal energy released from the burning is used to convert water to super-heated steam. At high pressure, this steam drives a turbine to generate electricity. ELECTRICITY GENERATION Electricity is generated at 11kv, with an electric capacity of 9.5 MWh. INCINERATOR BOTTOM ASH (IBA) Ash left on the grate after incineration is carried by conveyor, after quenching, to a storage bunker. A magnet above the conveyor extracts ferrous material for recycling. The remaining bottom ash is trucked off-site for recycling. AIR-COOLED CONDENSERS After exiting the turbine, the air stream is cooled and condensed back into water through air condensers. This recovered water is treated and reused in the boilers to produce more steam. AIR-COOLED CONDENSERS After exiting the turbine, the air stream is cooled and condensed back into water through air condensers. This recovered water is treated and reused in the boilers to produce more steam. EMISSION CONTROL The gases from the furnace are subject to a rigorous cleaning process involving selective non-catalytic reduction (SNCR), spray absorbers, and active carbon injection. This removes oxides of nitrogen, acidic gases, dioxins, and heavy metals from the gas stream. | K15: Include summary of key processes and procedures such as (but not limited to); waste reception, control rooms, grate, bed and boiler, energy & heat generation, cooling systems, residue management, emission controls, health and safety systems, maintenance

Sheet Operational Data
A1: =+'Cover Page'!$B$29 -> Annual Performance Report 2025 | E1: =+'Cover Page'!$B$33 -> SUEZ R&R Kirklees EfW
A3: Operational Data
A4: Plant Size: | B4: 135000 | D4: tonnes pa | J4: Notes:
A5: Nominal net thermal input: | B5: 12 | C5: MWth | J5: * Export capacity = nominal generation capacity at the generator terminals minus nominal parasitic load. ** CHP and district heating plants only - put N/A if no heat export. *** Combusted tonnage = tonnes delivered in period + (tonnes in bunker at start of period – tonnes in bunker at end of period), or equivalent calculation depending on plant type **** Availability Definition: The availability of a line is to be calculated by the number of hours the line reported Continuously Monitored emission levels to the Regulator through the calendar year divided by the total number of hours in that year. The overall plant availability is calculated as the mean of all lines in the plant. For clarity this includes periods of abnormal operation. Rationale: The primary function of an Energy from Waste facility is the disposal of waste. It follows therefore that the availability of a plant is determined by the period of time a facility spends undertaking this activity. *****NCV of waste: This should be completed for all plants which have a boiler. Calculate using total thermal power produced by boiler/boiler efficiency, or other suitable calculation.
A6: Nominal electrical export capacity*: | B6: 10 | C6: MWe
A7: Nominal heat export capacity**: | C7: MWth
A8: No. of combustion lines: | B8: 1 | C8: No. of steam turbines: | E8: 1
A10: Waste types received | B10: Unit | C10: Q1 | D10: Q2 | E10: Q3 | F10: Q4 | G10: Year Total | H10: %
A11: Household / Local Authority | B11: tonnes | C11: 31495 | D11: 22210 | E11: 32021 | F11: 34272 | G11: =SUM(C11:F11) -> 119998 | H11: =IF(G11>0,G11/$G$21,"-") -> 0.9604911393
A12: Commercial & Industrial | C12: 1626 | D12: 430 | E12: 491 | F12: 1081 | G12: =SUM(C12:F12) -> 3628 | H12: 0.02903933277
A13: Hazardous | G13: 0 | H13: -
A14: Clinical | C14: 278 | D14: 481 | E14: 316 | F14: 233 | G14: 1308 | H14: 0.01046952791
A15: Waste wood (biomass) | G15: 0 | H15: -
A16: Refuse Derived Fuel (incl. SRF) - H'hold/LA | G16: =SUM(C16:F16) -> 0 | H16: -
A17: Refuse Derived Fuel (incl. SRF) - C&I | G17: 0 | H17: -
A18: Other [Please specify] | G18: 0 | H18: -
A19: Other [Please specify] | G19: 0 | H19: -
A20: Other [Please specify] | G20: 0 | H20: -
A21: Total waste received | C21: =SUM(C11:C20) -> 33399 | D21: =SUM(D11:D20) -> 23121 | E21: =SUM(E11:E20) -> 32828 | F21: =SUM(F11:F20) -> 35586 | G21: 124934
A22: Rejected Waste | G22: =SUM(C22:F22) -> 0 | H22: =IF(G22>0,G22/$G$21,"-") -> -
A23: Unprocessed waste transferred out | G23: =SUM(C23:F23) -> 0 | H23: =IF(G23>0,G23/$G$21,"-") -> -
A24: Total waste combusted *** | C24: =C21-SUM(C22:C23) -> 33399 | D24: =D21-SUM(D22:D23) -> 23121 | E24: =E21-SUM(E22:E23) -> 32828 | F24: =F21-SUM(F22:F23) -> 35586 | G24: =SUM(C24:F24) -> 124934
A26: Energy Usage / Export | B26: Unit | C26: Q1 | D26: Q2 | E26: Q3 | F26: Q4 | G26: Year Total | H26: KWh/te | J26: Password for protected cells A password has been set to prevent accidental editing of cells with formulae. If you still need to make an edit for some reason then the password = 1234
A27: Power generated at generator terminals | B27: MWh | C27: 21205 | D27: 11451 | E27: 20452 | F27: 21168 | G27: =SUM(C27:F27) -> 74276 | H27: =IF(G27>0,G27*1000/$G$24,"-") -> 594.5219076
A28: Power exported to grid and other external user(s) | C28: 18534.3354 | D28: 9922.911117 | E28: 17848.32691 | F28: 18533.32657 | G28: =SUM(C28:F28) -> 64838.9 | H28: =IF(G28>0,G28*1000/$G$24,"-") -> 518.9852242
A29: Power imported | C29: 46.99 | D29: 664.4 | E29: 83.17 | F29: 109.9 | G29: 904.46 | H29: =IF(G29>0,G29*1000/$G$24,"-") -> 7.239502457
A30: Indicative parasitic load | B30: % | C30: =IF(C27>0,(C27-C28)/C27,"-") -> 0.125945041 | D30: =IF(D27>0,(D27-D28)/D27,"-") -> 0.1334458897 | E30: 0.127306527 | F30: 0.1244649202 | G30: =IF(G27>0,1-G28/(G27+G29),"-") -> 0.1375564874
A31: Thermal Energy Exported ** | G31: =SUM(C32:F32) -> 0 | H31: =IF(G31>0,G31*1000/$G$24,"-") -> -
A32: R1 value (if applicable) | B32: R1
A34: Waste Disposal & Recovery | B34: Unit | C34: Q1 | D34: Q2 | E34: Q3 | F34: Q4 | G34: Year Total | H34: % inputs
A35: APC Residues - produced | B35: tonnes | C35: 1164 | D35: 857 | E35: 1220 | F35: 1210 | G35: =SUM(C35:F35) -> 4451 | H35: =IF(G35>0,G35/$G$24,"-") -> 0.03562681096
A36: IBA - produced | C36: 6786 | D36: 4851 | E36: 6708 | F36: 6463 | G36: 24808 | H36: =IF(G36>0,G36/$G$24,"-") -> 0.1985688443
A37: Metals recycling | C37: 284 | D37: 472 | E37: 616 | F37: 622 | G37: =SUM(C37:F37) -> 1994 | H37: 0.01596042711
A38: Other | G38: =SUM(C38:F38) -> 0 | H38: -
A39: Other | G39: 0 | H39: -
A40: Other | G40: 0 | H40: -
A42: Raw Material Usage | B42: Unit | C42: Q1 | D42: Q2 | E42: Q3 | F42: Q4 | G42: Year Total | H42: Qty./te
A43: Mains Water | B43: ltrs | C43: 3000 | D43: 3000 | E43: 3000 | F43: 3000 | G43: =SUM(C43:F43) -> 12000 | H43: =IF(G43>0,G43/$G$24,"-") -> 0.09605071478
A44: Other Water | B44: ltrs | C44: 6191 | D44: 5344 | E44: 6213 | F44: 5589 | G44: 23337 | H44: =IF(G44>0,G44/$G$24,"-") -> 0.1867946276
A45: Ammonia | B45: kgs | G45: 0 | H45: -
A46: Urea | B46: kgs | C46: 22700 | D46: 13750 | E46: 22700 | F46: 17150 | G46: =SUM(C46:F46) -> 76300 | H46: 0.6107224615
A47: Activated Carbon | B47: kgs | C47: 11367 | D47: 9395 | E47: 13288 | F47: 12110 | G47: 46160 | H47: 0.3694750828
A48: Lime / hydrated lime | B48: kgs | C48: 227860 | D48: 218100 | E48: 277890 | F48: 256190 | G48: 980040 | H48: 7.844461876
A49: Fuel oil | B49: ltrs | C49: 87742 | D49: 124675 | E49: 106236 | F49: 118019 | G49: 436672 | H49: 3.495221477
A50: Gas | B50: m3 | G50: 0 | H50: -
A51: Other | G51: 0 | H51: -
A53: Summary | B53: Line/Unit | C53: Q1 | D53: Q2 | E53: Q3 | F53: Q4 | G53: Year Total | I53: Hrs in year
A54: Availability of waste combustion by line, hrs **** | B54: 1 | C54: 2059 | D54: 1493.5 | E54: 2070.5 | F54: 2076 | G54: =SUM(C54:F54) -> 7699 | H54: =+G54/$I$54 -> 0.8788812785 | I54: 8760 | J54: Change this figure to 8784 in a leap year
B55: 2 | G55: 0 | H55: =+G55/$I$54 -> 0
B56: 3 | G56: 0 | H56: 0
B57: 4 | G57: 0 | H57: 0
B58: 5 | G58: =SUM(C58:F58) -> 0 | H58: 0
A59: Hours of turbine operations, hrs | B59: 1 | C59: 2059 | D59: 1229 | E59: 2071 | F59: 2076 | G59: 7435 | H59: 0.8487442922
A60: Hours of turbine operations, hrs | B60: 2 | G60: 0 | H60: 0
A61: Hours of heat / steam export** | B61: hours | G61: 0 | H61: =IF(B61>0,G60/I54,"n/a") -> 0
A62: Net calorific value of waste***** | B62: MJ/kg | C62: 9.722652258 | D62: 10.13323803 | E62: 10.0399022 | F62: 9.478363439 | G62: 9.82174724
A63: Abnormal operation events | B63: qty. | D63: 1 | F63: 1 | G63: 2 | H63: =IF(G63>0,"yes","no") -> yes
A64: Abnormal operation duration | B64: hours | D64: 0.5 | F64: 0.5 | G64: 1 | H64: =+(G64)/I54 -> 0.0001141552511
A65: Permit Breaches | B65: qty. | D65: 1 | E65: 1 | G65: 2 | H65: =IF(G65>0,"yes","no") -> yes

Sheet Operational Summary
A1: =+'Cover Page'!$B$29 -> Annual Performance Report 2025 | E1: =+'Cover Page'!$B$33 -> SUEZ R&R Kirklees EfW
A3: Summary of Plant Operations and Maintenance during the reporting year | K3: Notes:
A5: Operations: 352 hours of unplanned downtime, primarily due to required mainteance fixing residues handling conveyors, and restoring power conducting necessary tests after a failure of the site UPS. Overall, the facility exceeded 100% use factor (achieving target steam set point), in spite of reduced steam thoughput in May due to reduced steam flow through the steam bypass line, requiring offline maintenance to resolve. Combustion has been good throughout the year. C14 sampling from the stack commenced in December. Key Maintenance Works: During the planned outage, superheater 3 and evaporator 2 from the horizontal boiler were replaced with new like-for-like parts. A new analyser was installed at the stack to monitor the C14 content of CO2 emitted from the process to determine fossil derived CO2 tonnage in line with anticipated future GHG permit requirements. Process imporvements were made in residues handling including addition of spray systems to mitigate plate conveyor wear. | K5: Include summary of key operational and/or maintenance activity undertaken in the year, such as any major component upgrades and/or replacements
A17: =+'Cover Page'!C39 -> 2025 | B17: Plant shut-downs
A18: Start date | B18: End date | C18: Reason for shut-down | K18: Provide a very brief reason for plant shut-down e.g. "Shut-down prior to major outage"; "Emergency shut-down due to boiler tube leak". All emergency shut-downs must be listed (irrespective of whether or not they were required to be reported to the EA). There is no need to include periods of hot-standby here (e.g. to clear feed chute hopper blockages). For clinical waste incinerators which require regular shut-downs for boiler cleaning, there is no need to record these here (only those prior to major outages, and emergency shut-downs).
A19: 2025-03-02 | B19: =A19+2 -> 2025-03-04 | C19: Grate seizure requiring offline maintenance
A20: 2025-04-28 | B20: 2025-05-20 | C20: Shutdown for major planned outage
A21: 2025-06-03 | B21: 2025-06-08 | C21: Steam bypass valve fouling requiring offline maintenance
A22: 2025-07-14 | B22: 2025-07-15 | C22: Waste chute blocked by lodged waste crane requiring emergency shutdown
A23: 2025-08-24 | B23: 2025-08-27 | C23: Bottom Ash Conveyor Chain Failure requring offline maintenance
A24: 2025-10-12 | B24: =A24+4 -> 2025-10-16 | C24: Emergency shutdown due to turbine trip & UPS failure

Sheet Perf. Form 1
A1: =+'Cover Page'!C39 -> 2025 | B1: Annual Reporting Performance Form 1
A3: =+'Cover Page'!B31 -> Permit EPR/BJ6178IX | F3: Operator: | G3: =+'Cover Page'!B37 -> Kirklees EfW
A4: Facility: | B4: =+'Cover Page'!B33:I33 -> SUEZ R&R Kirklees EfW | F4: Form: | G4: Performance 1
A6: Reporting Period from: | D6: 2025-01-01 | F6: to: | G6: 2025-12-31
A8: =+A1 -> 2025 | B8: Annual Reporting of Waste Disposal and Recovery
A9: Waste Description | C9: Disposal Route(s) | E9: Disposal Tonnes | G9: Recovery Tonnes | I9: % / tonne of waste incinerated
A10: 1) Hazardous Wastes
A11: APC Residues | E11: 4451 | I11: =IF((E11+G11)>0,(E11+G11)/'Operational Data'!$G$24, "-") -> 0.03562681096
A12: IBA | I12: =IF((E12+G12)>0,(E12+G12)/'Operational Data'!$G$24, "-") -> -
I13: =IF((E13+G13)>0,(E13+G13)/'Operational Data'!$G$24, "-") -> -
I14: =IF((E14+G14)>0,(E14+G14)/'Operational Data'!$G$24, "-") -> -
A15: Total Hazardous Waste | E15: =SUM(E11:F14) -> 4451 | G15: =SUM(G11:H14) -> 0 | I15: =IF((E15+G15)>0,(E15+G15)/'Operational Data'!$G$24, "-") -> 0.03562681096
A17: 2) Non-Hazardous Wastes
A18: IBA | E18: 24808 | I18: =IF((E18+G18)>0,(E18+G18)/'Operational Data'!$G$24, "-") -> 0.1985688443
A19: Ferrous Metal | E19: 1994 | I19: =IF((E19+G19)>0,(E19+G19)/'Operational Data'!$G$24, "-") -> 0.01596042711
A20: Process Water | I20: =IF((E20+G20)>0,(E20+G20)/'Operational Data'!$G$24, "-") -> -
I21: =IF((E21+G21)>0,(E21+G21)/'Operational Data'!$G$24, "-") -> -
A22: Total Non-Hazardous Waste | E22: =SUM(E18:F21) -> 26802 | G22: =SUM(G18:H21) -> 0 | I22: =IF((E22+G22)>0,(E22+G22)/'Operational Data'!$G$24, "-") -> 0.2145292715
A23: TOTAL WASTE | E23: =+E22+E15 -> 31253 | G23: =+G22+G15 -> 0 | I23: =IF((E23+G23)>0,(E23+G23)/'Operational Data'!$G$24, "-") -> 0.2501560824
A25: Operator’s comments :
A29: =+A1 -> 2025 | B29: Annual Reporting of Water and Other Raw Material Usage
A30: Raw Material | E30: Usage | G30: Unit | H30: Specific Usage | J30: Unit
A31: Mains Water | E31: =+'Operational Data'!G43/1000 -> 12 | G31: m3 | H31: =IF(E31>0,E31/'Operational Data'!$G$24,"-") -> 9.605071478e-05 | J31: m3/te
A32: Total Water | E32: =+'Operational Data'!G44+'Operational Data'!G43/1000 -> 23349 | G32: m3 | H32: =IF(E32>0,E32/'Operational Data'!$G$24,"-") -> 0.1868906783 | J32: m3/te
A33: Urea | E33: =+'Operational Data'!G46 -> 76300 | G33: kg | H33: =IF(E33>0,E33/'Operational Data'!$G$24,"-") -> 0.6107224615 | J33: kg/te
A34: Activated Carbon | E34: =+'Operational Data'!G47 -> 46160 | G34: kg | H34: =IF(E34>0,E34/'Operational Data'!$G$24,"-") -> 0.3694750828 | J34: kg/te
A35: Lime / hydrated lime / Sodium Bicarb. | E35: =+'Operational Data'!G48 -> 980040 | G35: kg | H35: =IF(E35>0,E35/'Operational Data'!$G$24,"-") -> 7.844461876 | J35: kg/te
A37: Operator’s comments :
A41: =+A29 -> 2025 | B41: Annual Reporting of other performance indicators
A42: Parameter | C42: Results by Line
C43: A1 | D43: A2 | E43: A3 | F43: A4 | G43: A5 | I43: Turbine 1 | J43: Turbine 2
A44: Operating hours for the year, hours | C44: 7699 | I44: 7435
A45: Number of periods of abnormal operation, qty. | C45: 3
A46: Cumulative hours of abnormal operation for this year, hours | C46: 1
A48: Operator’s comments :
A52: Signed: | G52: Date:

Sheet Energy Form 1
A1: =+'Cover Page'!C39 -> 2025 | B1: Annual Reporting of Energy Usage/Export
A3: =+'Cover Page'!B31 -> Permit EPR/BJ6178IX | F3: Operator: | G3: =+'Cover Page'!B37 -> Kirklees EfW
A5: Facility: | B5: =+'Cover Page'!B33:I33 -> SUEZ R&R Kirklees EfW | F5: Form: | G5: Energy 1
A7: Reporting Period from: | D7: =+'Perf. Form 1'!D6:E6 -> 2025-01-01 | F7: to: | G7: =+'Perf. Form 1'!G6:H6 -> 2025-12-31
A9: Energy Source | D9: Energy Usage | F9: Unit | G9: Specific Usage (KWh/tonne incinerated
A10: Electricity Produced | D10: =+'Operational Data'!G27 -> 74276 | F10: MWh | G10: =+'Operational Data'!H27 -> 594.5219076
A11: Electricity Imported | D11: =+'Operational Data'!G29 -> 904.46 | F11: MWh | G11: =+'Operational Data'!H29 -> 7.239502457
A12: Electricity Exported | D12: =+'Operational Data'!G28 -> 64838.9 | F12: MWh | G12: =+'Operational Data'!H28 -> 518.9852242
A13: Gas Oil | F13: tonnes
A14: Steam/hot water exported | D14: =+'Operational Data'!G31 -> 0 | F14: GWh | G14: =+'Operational Data'!H31 -> -
A17: Operator’s comments :
A24: Signed: | G24: Date:

Sheet Public Liasion
A1: =+'Cover Page'!$B$29 -> Annual Performance Report 2025 | E1: =+'Cover Page'!$B$33 -> SUEZ R&R Kirklees EfW
A3: Details of Public & Stakeholder Liaison
A5: Summary of events held during the reporting year.
A6: Date | C6: Description
A7: 2025-02-12 | C7: Council Tour of EFW & Q&A session
A9: 2025-06-04 | C9: Huddersfield & Calderdale tour of EFW
A11: 2025-06-25 | C11: WYCA tour of EfW
A13: 2025-06-26 | C13: School Visit - talk & Q&A with Hillside Primary School
A15: 2025-09-11 | C15: Council & Public Tour of EFW & Q&A session
A17: 2025-10-30 | C17: Educational tour & Q&A session with Business Management Degree Students
A19: 2025-11-17 | C19: Educational tour & Q&A session with Huddersfield University Students
A22: List of events planned for next year
A23: Date | C23: Description
A24: Not yet booked in | C24: Aspirations day” at Mount Pleasant school Huddersfield.
A29: If you wish to be involved in the public liaison programme, please contact __Mark Ryan (EfW Site Manger)_______________

Sheet Permit Compliance
A1: =+'Cover Page'!$B$29 -> Annual Performance Report 2025 | E1: =+'Cover Page'!$B$33 -> SUEZ R&R Kirklees EfW
A3: Summary of Permit Compliance
A5: Compliance with permit limits for continuously monitored pollutants
A7: The plant met its emission limits as shown in the table below:
A8: Substance | C8: Percentage time compliant during operationNote 1 | L8: Notes:
C9: Half-hourly limit | F9: Daily limit | L9: Note 1: Please report to 2 decimal places, i.e. xx.xx% Note 2: Please enter into this table any permit non-compliances that the EA has given a CCS score for. Please also enter any other non-compliances which you have notified to the EA (e.g. ELV exceedances) but which have not yet been assessed by the EA. There is no need to enter any notifications which were subsequently assessed by the EA not to be permit breaches. Note 3: Please enter information here (rather than just referencing the notifications that were sent to the EA) including where relevant the incineration line reference, pollutant and value of the measured result for any ELV exceedances.
A10: Particulates | C10: 1 | F10: 1
A11: Oxides of nitrogen | C11: 1 | F11: 1
A12: Sulphur dioxide | C12: 1 | F12: 1
A13: Carbon monoxide | C13: 100.00% 95% of 10-min averages | F13: 1
A14: Total organic carbon | C14: 1 | F14: 1
A15: Hydrogen chloride | C15: 0.9998 | F15: 1
A16: Hydrogen fluoride | C16: NA | F16: NA
C17: xx.xx % | F17: xx.xx %
A19: Summary of non-compliances under the permit Note 2
A20: Date | B20: Summary of non-compliance Note 3 | D20: Reason | G20: Measures taken to prevent reoccurrence | H20: CCS score if applicable*
H21: Impact | I21: Root cause
A22: 19/06/2025 SKL003 | B22: HCL Breech 153mg-Nm3. Limit 20mg/Nm3 | D22: The plastic waste that we believe caused the spike in HCl emissions was traced to delivery from our main client Kirklees council. The waste was tipped on the tipping hall floor then pushed into the waste pit. This was then fed to the furnace without sufficient mixing. Around 1 hour later the HCl emissions started to rise quickly. The abatement system was taken into hand and the lime slurry increased through the atomiser to reduce emissions as far as possible. The furnace cut off gate was shut, waste feeding stopped. Burners were put into service to support furnace temperature above 850 degree. | G22: Identify where this waste was collected from with the aid of Kirklees council. Communicate this with all operational staff to ensure this waste is segregated and processed before it enters the waste pit. | H22: CCS4 | I22: CCS4
A23: 01/09/2025 SKL007 | B23: Dioxins & Furans (NATO I-TEQ) 0.2309ng-m3. Limit 0.06ng/m3 | D23: Bi-annual periodic stack test carried out on 1/9/25 including Dioxins, result received back exceeding limit at 0.2309ng/m3. 3 days prior to the Dioxin testing (29th Aug) the plant experienced a power blackout due to a surge from the national grid. This tripped all combustion fans which dropped the temperature within the furnace for a short period. On the days of testing, no issues were experienced with combustion or temperatures within the furnace / 1st pass. Carbon dosed under normal operating conditions. Following an investigations it was identified that there was a partial blockage of the hot end of the horizontal pass. This has a potential to create pockets of cooling of the flue gas. | G23: • This blockage has been monitored consistently • Blockage removed . • Dioxins retested 25-26/10/25, as required in EA Instruction: LIT 59746 (Dioxins & Furans limit exceedance). • Retest results for Dioxins & Furans (NATO I-TEQ) received with a result of 0.0257 & 0.0180, w ell within the compliance limit of 0.06ng/m3 | H23: CCS3
A24: 21/05/2025 SKL002 | B24: NH3 21.4mg-Nm3. Limit 15mg/Nm3 | D24: Operator attempted to close in the urea control valve to reduce flow but this had no effect on the total flow. Locally the Urea control valve was isolated and the bypass opened to reduce Urea flow. This brought NH3 emissions within limits. Temporary operating instruction used to inform shift teams of using the bypass to control Urea flow & work order raised for investigation. Urea control valve found to have it’s proportional band adjustment loose inside the valve bonnet. This was tightened and recalibrated for correct positioning. The dilution water pipework to the Urea system found to be fouled – presuming from the outage. Pipework fouling removed. System checked for control and left in service. Temporary operating instruction cancelled. | G24: Amend the maintenance PM to add instruction to check valve proportional band adjustment & security of fitting
A25: *If the Environment Agency (EA) has given a Compliance Classification Scheme (CCS) score due to a permit non-compliance it should be entered here (CCS4 = No impact; CCS3 = Minor impact; CCS2 = Significant impact; CCS1 = Major impact). If the EA has not yet assessed a non-compliance which you have notified to them, these columns should be left blank. Enter N/A if no score was given for the root cause.
A26: Summary of any complaints received and actions to taken to resolve them.
A27: Date | B27: Summary of complaint [including Line/Reference] | E27: Reason (including whether substantiated by the operator or the EA) | H27: Measures taken to prevent reoccurrence

Sheet Improvements
A1: =+'Cover Page'!$B$29 -> Annual Performance Report 2025 | E1: =+'Cover Page'!$B$33 -> SUEZ R&R Kirklees EfW
A3: Summary of Plant Improvements
A5: Summary of any efficiency improvements that have been completed within the year.
A6: Improved operation of the steam bypass valve (since internal overhaul in June 2025) has increased the volume of steam to the turbine, increasing the generation of electricity, and improving site efficiency.
A10: Summary of any permit improvement conditions that have been completed within the year and the resulting environmental benefits.
A11: Not applicable
A14: Summary of any changes to the plant or operating techniques which required a variation to the permit and a summary of the resulting environmental impact.
A15: Not applicable
A18: Summary of any other improvements made to the plant or planned to be made and a summary of the resulting environmental benefits.
A19: Maintenance conducted on bag filter structre through the application of a ceramic lining to improve dust & dioxin abatement capabilities, as well as increasing asset lifecycle.

Sheet CO2 N2O
A1: =+'Cover Page'!$B$29 -> Annual Performance Report 2025 | C1: =+'Cover Page'!$B$33 -> SUEZ R&R Kirklees EfW
A3: Carbon dioxide emissions and biogenic content of waste inputs | F3: Notes:
A5: Carbon dioxide emissions (all types of plant)
B6: Annual mass of carbon dioxide released | C6: tonnes | D6: 126146.7999
B7: Annual mass of carbon dioxide released per tonne of waste burned | C7: t CO2 / t waste | D7: =D6/'Operational Data'!G24 -> 1.009707525
B8: Annual mass of carbon dioxide released per MWh of energy exported | C8: t CO2 / MWh export | D8: =D6/'Operational Data'!G28 -> 1.94554195
B9: Description of how annual carbon dioxide mass emission has been calculated. See Note 1 | C9: Directly from CEMS data | F9: Note 1: All permits require operators to continuously monitor CO2 to EN14181 and flow to BS EN 16911-2 (unless otherwise agreed in writing). Operators must therefore use the results from these instruments to calculate their annual CO2 emissions. Where an operator does not have a flow meter calibrated to BS EN 16911-2, the averaged flow measurement from that year's periodic monitoring can be used instead. If the plant does not have calibrated CO2 CEMS, a suitably justified emissions factor can be used.
A10: Nitrous oxide emissions (only plants which use ammonia or urea to abate NOx emissions)
B11: Annual mass emissions of nitrous oxide | C11: tonnes N2O | D11: 2.346491012
B12: Description of how annual nitrous oxide mass emission has been calculated See Note 2 | C12: Direct from CEMS data | F12: Note 2: All permits require operators to continuously monitor N2O to EN14181 and flow to BS EN 16911-2, unless otherwise agreed in writing. Operators must therefore use the results from these instruments to calculate their annual N2O emissions. Where an operator does not have a flow meter calibrated to BS EN 16911-2, the averaged flow measurement from periodic monitoring can be used instead. If the plant does not have calibrated N2O CEMS, data from periodic monitoring or a suitably justified emissions factor can be used instead.
A13: Total annual carbon dioxide + nitrous oxide emissions. See Note 3. | C13: tonnes CO2e | D13: =D11*265+D6 -> 126768.6201 | F13: Note 3: Total annual carbon dioxide and nitrous oxide emissions reported as carbon dioxide equivalent where 1 tonne nitrous oxide is equivalent to 265 tonnes carbon dioxide.
A14: Biogenic CO2 emissions (See Note 4) | F14: Note 4: Only plants combusting residual municipal waste, refuse derived fuel or solid recovered fuel need complete this section.
B15: Percentage of total carbon dioxide emissions arising from biogenic waste | C15: % | D15: 0.5726
B16: No. of measurements undertaken | C16: Number | D16: 1
B17: Description of how percentage biogenic carbon dioxide emissions have been measured or calculated. See Note 5 | C17: Assessed from breakdown of waste composition from thrid party reporting (M.E.L.) and the representative carbon content of each component. From 2026 onwards, site will use C14 sampling at the stack to determine the biogenic fraction. | F17: Note 5: The results from C14 sampling should be used if this is carried out at the plant (either via an installed sampler or from spot samples). Otherwise, as an approximation (and in lieu of any more accurate metrics which may be developed in future), the measured or estimated biogenic fraction by net calorific value (see Note 6) can be assumed to be the same as the biogenic CO2 fraction of the total CO2 emissions from the plant.
A18: Biogenic fraction of waste feedstock (See Note 4)
B19: Yearly average biogenic percentage of the waste by net calorific value (NCV) | C19: % | D19: 0.477
B20: Description of how biogenic percentage (by NCV) has been calculated or estimated. See Note 6 | C20: Assessed from breakdown of waste composition from thridparty reporting (M.E.L.) and the representative carbon content of each component. | F20: Note 6: If C14 sampling is carried out at the plant, the methodology set out in the embedded document entitled "Renewable Energy Association Energy Content of Fuels - Description of Method" embedded below can be used to calculate the biogenic percentage by net calorific value. Otherwise, data from waste sampling or BIOMA software can be used; or if none of these are available, an estimated figure with justification or a figure assumed on the basis of up-to-date industry data can be used.
B21: Yearly average biogenic percentage of the waste by mass | C21: % | D21: =D15 -> 0.5726
B22: If waste sampling undertaken, no. of samples used to ascertain average biogenic percentages above. | C22: Number | D22: 1
B23: Description of how biogenic percentage (by mass) has been calculated or estimated. See Note 7 | F23: Note 7: Where available, data from waste sampling should be used; otherwise, an estimated figure with justification can be used, or a figure assumed on the basis of up-to-date industry data.
B25: Comments:

Sheet Residues
A1: =+'Cover Page'!$B$29 -> Annual Performance Report 2025 | E1: =+'Cover Page'!$B$33 -> SUEZ R&R Kirklees EfW
A3: Summary of Residue Handling for the reporting year
A5: Several instances of boiler ash pan failures have been resolved in 2025, one requiring offline maintenance due to the failure of the conveyor chain as well as damaged conveyor pans. Since September, considerable improvements have been made in identifying and rectifying damaged bottom ash pans due to improved operator training and implementation of gearbox hydraulic pressure alarms. This has reduced downtime due to an instance of pan failure by 7 fold. Improvements to the apron plate conveyor cleaning mechnisms aims to increase the lifetime of the APC chain, reducing the liklihood of conveyor failure, thus maintaining site's ability to send bottom ash for reuse. Burnout quality has been excellent, with 0 IBA exceedances and APCR continues to be taken off-site by Castle Environmental. Ferrous metals are separated on-site and sent for recycling. | K5: Include in here a summary of residue handling regimes and destinations
A14: Residue Quality Monitoring Requirements
A16: Summary of monitoring undertaken and compliance
A17: Quarterly IBA & APCR samples takien on line 1
A19: Weeekly hazard assessment carried out on line 1
A22: Commentary on any specific events
A23: Date & Event | C23: Description
A27: Residue Quality Monitoring Results
A28: Parameter (unit) | C28: Limit* | D28: Normal Operation
D29: Bottom ash | F29: APC Residues
A30: Loss on Ignition (average %) | C30: <5% | D30: N/A
A31: Total Organic Carbon (average %) | C31: <3% | D31: 0.637
A32: No. of Assessments Undertaken | C32: --- | D32: 4 samples taken per year | F32: 4 samples taken per year
A33: No. of Hazardous Results | C33: --- | D33: Weekly samples
A34: * The permit will specify a limit of either 5% loss on ignition or 3% total organic carbon. If both are measured anyway, please enter the results here, even where the limit does not apply.
A36: Comments :

Sheet Water
A1: =+'Cover Page'!$B$29 -> Annual Performance Report 2025 | E1: =+'Cover Page'!$B$33 -> SUEZ R&R Kirklees EfW
A3: Emissions to Water
A5: Summary of monitoring undertaken and compliance
A6: No Water sampling carried out at Kirklees
A11: Commentary on any specific events
A12: Date & Event | C12: Description
A18: Emissions to Water / Sewer
A19: Parameter | D19: Monitoring Frequency | F19: Limit | G19: Target | H19: Max. | I19: Average

Sheet Air (periodic)
A1: =+'Cover Page'!$B$29 -> Annual Performance Report 2025 | E1: =+'Cover Page'!$B$33 -> SUEZ R&R Kirklees EfW
A3: Emissions to Air (periodically monitored)
A5: Summary of monitoring undertaken, standards used and compliance | K5: Notes:
A6: Periodic testing carried out biannually . There was 1 non-compliances identified during ths 2nd visit, this was for Dioxins. | K6: Template may require adjustment for any bespoke monitoring requirements of permit - please also check that all default ELV values, reference periods and the stated oxygen reference value match those for your plant, and edit if necessary!
A9: Results of emissions to air that are periodically monitored - oxygen reference 11%
A10: Substance | C10: Ref. Period | D10: Emission Limit Value | F10: Average | K10: User to add additional tables as necessary, depending on whether quarterly or bi-annual reporting is required for the compliance year
F11: A1 | G11: A2 | H11: A3 | I11: A4 | J11: A5
A12: Hydrogen fluoride | C12: 1 hr | D12: 1 mg/m3 | F12: 0.26
A13: Cd and Tl and their compounds | C13: 0.5-8hrs | D13: 0.02 mg/m3 | F13: 0.001
A14: Hg and its compounds | C14: 0.5-8hrs | D14: 0.02 mg/m3 | F14: 0.0004
A15: Sb, As, Pb, Cr, Co, Cu, Mn, Ni, V and their compounds | C15: 0.5-8hrs | D15: 0.3 mg/m3 | F15: 0.13
A16: Dioxins & Furans (I-TEQ) | C16: 6-8hrs | D16: 0.06 ng/m3 | F16: 0.2309
A17: PCBs (WHO-TEQ Humans / Mammals) | C17: 6-8hrs | D17: None set ng/m3 | F17: 0.010709
A18: PCBs (WHO-TEQ Fish) | C18: 6-8hrs | D18: None set ng/m3 | F18: 0.000376
A19: PCBs (WHO-TEQ Birds) | C19: 6-8hrs | D19: None set ng/m3 | F19: 0.010443
A20: Dioxins & Furans (WHO-TEQ Humans / Mammals) | C20: 6-8hrs | D20: None set ng/m3 | F20: 0.2061
A21: Dioxins & Furans (WHO-TEQ Fish) | C21: 6-8hrs | D21: None set ng/m3 | F21: 0.2344
A22: Dioxins & Furans (WHO-TEQ Birds) | C22: 6-8hrs | D22: None set ng/m3 | F22: 0.3302
A23: Anthanthrene | C23: 6-8hrs | D23: None set µg/m3 | F23: <0.002
A24: Benzo(a)anthracene | C24: 6-8hrs | D24: None set µg/m3 | F24: 0.002
A25: Benzo(a)pyrene | C25: 6-8hrs | D25: None set µg/m3 | F25: <0.002
A26: Benzo(b)fluoranthene | C26: 6-8hrs | D26: None set µg/m3 | F26: 0.002
A27: Benzo(b)naptho(2,1-d) thiophene | C27: 6-8hrs | D27: None set µg/m3 | F27: <0.002
A28: Benzo(c)phenanthrene | C28: 6-8hrs | D28: None set µg/m3 | F28: <0.002
A29: Benzo(ghi)perylene | C29: 6-8hrs | D29: None set µg/m3 | F29: 0.009
A30: Benzo(k)fluoranthene | C30: 6-8hrs | D30: None set µg/m3 | F30: <0.002
A31: Cholanthrene | C31: 6-8hrs | D31: None set µg/m3 | F31: <0.002
A32: Chrysene | C32: 6-8hrs | D32: None set µg/m3 | F32: 0.005
A33: Cyclopenta(cd)pyrene | C33: 6-8hrs | D33: None set µg/m3 | F33: <0.002
A34: Dibenzo(ai)pyrene | C34: 6-8hrs | D34: None set µg/m3 | F34: <0.002
A35: Dibenzo(ah)anthracene | C35: 6-8hrs | D35: None set µg/m3 | F35: <0.002
A36: Fluoranthene | C36: 6-8hrs | D36: None set µg/m3 | F36: 0.06
A37: Indeno(123-cd) pyrene | C37: 6-8hrs | D37: None set µg/m3 | F37: <0.002
A38: Naphthalene | C38: 6-8hrs | D38: None set µg/m3 | F38: 0.3
A39: Comments :

Sheet Air (CEMS)
A1: =+'Cover Page'!$B$29 -> Annual Performance Report 2025 | I1: =+'Cover Page'!$B$33 -> SUEZ R&R Kirklees EfW
A3: Emissions to Air (continuously monitored)
N4: Notes:
A5: Summary of monitoring undertaken, standards used and compliance | N5: Template may require adjustment for any bespoke monitoring requirements of permit
A6: The CEMS set up comprises a multigas analyser, FID analyser and oxygen probe for extractive sampling where flue gases are drawn continuously via a heated line to the analysers in the CEMS room for each incineration line. In situ sampling i.e. where the probes are installed directly into the flue gas flow in the stack is for the dust probes only. The set up for the duty analysers is mirrored by the standby analysers. The standby analysers can be switched between incineration Lines as required. Continuous monitoring is provided by the CEMS as required by the permit. The CEMS are installed in accordance with EN14181 and relevant Environment Agency guidance. | N6: Please check that all default ELV values match those for your plant and edit if necessary!
N7: Report to 1 decimal place
A10: Results of emissions to air that are continuously monitored (maximum and average values for each line) - oxygen reference 11%
A11: Substance | B11: Reference Period | C11: Emission Limit Value | D11: A1 | F11: A2 | H11: A3 | J11: A4 | L11: A5
D12: Max. | E12: Avg. | F12: Max. | G12: Avg. | H12: Max. | I12: Avg. | J12: Max. | K12: Avg. | L12: Max. | M12: Avg.
A13: Oxides of nitrogen | B13: Daily mean | C13: 180 mg/m3 | D13: =NOx!O19 -> 167.2 | E13: =NOx!N19 -> 147.525
B14: ½ hourly mean | C14: 400 mg/m3 | D14: =NOx!M19 -> 218.2 | E14: =NOx!L19 -> 147.525
A15: Particulates | B15: Daily mean | C15: 5 mg/m3 | D15: =Particulates!O19 -> 4.5 | E15: =Particulates!N19 -> 2.816666667
B16: ½ hourly mean | C16: 30 mg/m3 | D16: =Particulates!M19 -> 15.8 | E16: =Particulates!L19 -> 2.816666667
A17: Total Organic Carbon | B17: Daily mean | C17: 10 mg/m3 | D17: =TOC!O19 -> 10.4 | E17: =TOC!N19 -> 0.3833333333
B18: ½ hourly mean | C18: 20 mg/m3 | D18: =TOC!M19 -> 96.7 | E18: =TOC!L19 -> 0.3833333333
A19: Hydrogen chloride | B19: Daily mean | C19: 8 mg/m3 | D19: =HCl!O19 -> 6.4 | E19: =HCl!N19 -> 1.783333333
B20: ½ hourly mean | C20: 60 mg/m3 | D20: =HCl!M19 -> 153.5 | E20: =HCl!L19 -> 1.818181818
A21: Sulphur dioxide | B21: Daily mean | C21: 40 mg/m3 | D21: ='SO2'!O19 -> 24.8 | E21: ='SO2'!N19 -> 6.966666667
B22: ½ hourly mean | C22: 200 mg/m3 | D22: ='SO2'!M19 -> 301.9 | E22: ='SO2'!L19 -> 7
A23: Carbon monoxide | B23: Daily mean | C23: 50 mg/m3 | D23: ='CO 95% 10 min'!Q22 -> 162.7 | E23: ='CO 95% 10 min'!P22 -> 29.25833333
B24: 95%ile 10-min avg * | C24: 150 mg/m3 * | D24: ='CO 95% 10 min'!M22 -> 105.8416667
A25: Ammonia | B25: Daily mean | C25: 15 mg/m3 | D25: ='NH3'!O19 -> 21.4 | E25: ='NH3'!N19 -> 7.141666667
A26: * = delete as appropriate, depending on whether your plant has half-hourly or 10-min CO ELVs
A27: Comments :

Sheet HCl
A1: =+'Cover Page'!$B$29 -> Annual Performance Report 2025 | E1: =+'Cover Page'!$B$33 -> SUEZ R&R Kirklees EfW
A3: Monitoring of Hydrogen Chloride emissions | D3: Whole Installation | G3: See Notes in Cell Q3 | J3: =+A3 -> Monitoring of Hydrogen Chloride emissions | N3: Per Combustion Line | Q3: Notes:
Q4: User to add logic to complete Whole installation, Table A5:G18. From the data in Per Combustion Line, Table J6:O79, subject to No. of lines installed
A5: =+'Cover Page'!C39 -> 2025 | B5: 1/2 Hourly Reference Periods | E5: Daily Reference Periods
A6: mg/Nm3 | B6: 1/2 hourly HCl ELV | C6: Monthly mean of half-hourly averages | D6: Highest half- hourly average | E6: Daily HCl ELV | F6: Monthly mean of daily averages | G6: Highest daily average | J6: =+A5 -> 2025 | K6: mg/Nm3 | L6: Monthly mean of half-hourly averages | M6: Highest half- hourly average | N6: Monthly mean of daily averages | O6: Highest daily average
A7: Jan | B7: 60 | C7: =AVERAGE(L7,L22,L37,L52,L67) -> 2.4 | D7: =MAX(M7,M22,M37,M52,M67) -> 6.7 | E7: 8 | F7: =AVERAGE(N7,N22,N37,N52,N67) -> 2.4 | G7: =MAX(O7,O22,O37,O52,O67) -> 2.9 | J7: A1 | K7: Jan | L7: 2.4 | M7: 6.7 | N7: 2.4 | O7: 2.9
A8: Feb | B8: 60 | C8: =AVERAGE(L8,L23,L38,L53,L68) -> 2.2 | D8: =MAX(M8,M23,M38,M53,M68) -> 8.5 | E8: 8 | F8: =AVERAGE(N8,N23,N38,N53,N68) -> 2.2 | G8: =MAX(O8,O23,O38,O53,O68) -> 2.7 | K8: Feb | L8: 2.2 | M8: 8.5 | N8: 2.2 | O8: 2.7
A9: Mar | B9: 60 | C9: 2.3 | D9: 17.6 | E9: 8 | F9: 2.3 | G9: 3.6 | K9: Mar | L9: 2.3 | M9: 17.6 | N9: 2.3 | O9: 3.6 | Q9: Whole Installation table A5:G18:
A10: Apr | B10: 60 | C10: 2.5 | D10: 61.6 | E10: 8 | F10: 2.5 | G10: 4.9 | K10: Apr | L10: 2.5 | M10: 61.6 | N10: 2.5 | O10: 4.9 | Q10: Mean: for 1/2 hourly and daily periods calculate mean of values across all operational combustion lines for the month
A11: May | B11: 60 | C11: 0.6 | D11: 3.3 | E11: 8 | F11: 0.6 | G11: 1.2 | K11: May | L11: 0.6 | M11: 3.3 | N11: 0.6 | O11: 1.2
A12: Jun | B12: 60 | C12: 1.7 | D12: 153.5 | E12: 8 | F12: 1.7 | G12: 6.4 | K12: Jun | L12: 1.7 | M12: 153.5 | N12: 1.7 | O12: 6.4
A13: Jul | B13: 60 | C13: 1.6 | D13: 7.4 | E13: 8 | F13: 1.6 | G13: 2.3 | K13: Jul | L13: 1.6 | M13: 7.4 | N13: 1.6 | O13: 2.3 | Q13: Maximum: for 1/2 hourly and daily periods use the highest value across all operational combustion lines for the month
A14: Aug | B14: 60 | C14: 2 | D14: 6.1 | E14: 8 | F14: 2 | G14: 2.9 | K14: Aug | L14: 2 | M14: 6.1 | N14: 2 | O14: 2.9
A15: Sep | B15: 60 | C15: 1.5 | D15: 6.5 | E15: 8 | F15: 1.5 | G15: 2.3 | K15: Sep | L15: 1.5 | M15: 6.5 | N15: 1.5 | O15: 2.3
A16: Oct | B16: 60 | C16: 1.5 | D16: 71.9 | E16: 8 | F16: 1.5 | G16: 3.5 | K16: Oct | L16: 1.5 | M16: 71.9 | N16: 1.5 | O16: 3.5
A17: Nov | B17: 60 | C17: 1.7 | D17: 57.7 | E17: 8 | F17: 1.7 | G17: 3.4 | K17: Nov | L17: 1.7 | M17: 57.7 | N17: 1.7 | O17: 3.4
A18: Dec | B18: 60 | D18: 11.2 | E18: 8 | F18: 1.4 | G18: 2.4 | K18: Dec | L18: 1,4 | M18: 11.2 | N18: 1.4 | O18: 2.4
K19: Annual | L19: =AVERAGE(L7:L18) -> 1.818181818 | M19: =MAX(M7:M18) -> 153.5 | N19: =AVERAGE(N7:N18) -> 1.783333333 | O19: =MAX(O7:O18) -> 6.4
A48: Comments :

Sheet SO2
A1: =+'Cover Page'!$B$29 -> Annual Performance Report 2025 | E1: =+'Cover Page'!$B$33 -> SUEZ R&R Kirklees EfW
A3: Monitoring of Sulphur dioxide emissions | D3: Whole Installation | G3: See Notes in Cell Q3 | J3: =+A3 -> Monitoring of Sulphur dioxide emissions | N3: Per Combustion Line | Q3: Notes:
Q4: User to add logic to complete Whole installation, Table A5:G18. From the data in Per Combustion Line, Table J6:O79, subject to No. of lines installed
A5: =+'Cover Page'!C39 -> 2025 | B5: 1/2 Hourly Reference Periods | E5: Daily Reference Periods
A6: mg/Nm3 | B6: 1/2 hourly SO2 ELV | C6: Monthly mean of half-hourly averages | D6: Highest half- hourly average | E6: Daily SO2 ELV | F6: Monthly mean of daily averages | G6: Highest daily average | J6: =+A5 -> 2025 | K6: mg/Nm3 | L6: Monthly mean of half-hourly averages | M6: Highest half- hourly average | N6: Monthly mean of daily averages | O6: Highest daily average
A7: Jan | B7: 200 | C7: =AVERAGE(L7,L22,L37,L52,L67) -> 5.7 | D7: =MAX(M7,M22,M37,M52,M67) -> 36.8 | E7: 40 | F7: =AVERAGE(N7,N22,N37,N52,N67) -> 5.7 | G7: =MAX(O7,O22,O37,O52,O67) -> 12.2 | J7: A1 | K7: Jan | L7: 5.7 | M7: 36.8 | N7: 5.7 | O7: 12.2
A8: Feb | B8: 200 | C8: =AVERAGE(L8,L23,L38,L53,L68) -> 8.5 | D8: =MAX(M8,M23,M38,M53,M68) -> 68.1 | E8: 40 | F8: =AVERAGE(N8,N23,N38,N53,N68) -> 8.5 | G8: =MAX(O8,O23,O38,O53,O68) -> 15.1 | K8: Feb | L8: 8.5 | M8: 68.1 | N8: 8.5 | O8: 15.1
A9: Mar | B9: 200 | C9: 9.8 | D9: 106.1 | E9: 40 | F9: 9.8 | G9: 24.8 | K9: Mar | L9: 9.8 | M9: 106.1 | N9: 9.8 | O9: 24.8 | Q9: Whole Installation table A5:G18:
A10: Apr | B10: 200 | D10: 301.9 | E10: 40 | F10: 6.6 | G10: 13.2 | K10: Apr | L10: 6.3.6 | M10: 301.9 | N10: 6.6 | O10: 13.2 | Q10: Mean: for 1/2 hourly and daily periods calculate mean of values across all operational combustion lines for the month
A11: May | B11: 200 | C11: 4.5 | D11: 125.9 | E11: 40 | F11: 4.5 | G11: 16.2 | K11: May | L11: 4.5 | M11: 125.9 | N11: 4.5 | O11: 16.2
A12: Jun | B12: 200 | C12: 8 | D12: 171.8 | E12: 40 | F12: 8 | G12: 23 | K12: Jun | L12: 8 | M12: 171.8 | N12: 8 | O12: 23
A13: Jul | B13: 200 | C13: 8.3 | D13: 193 | E13: 40 | F13: 8.3 | G13: 14.8 | K13: Jul | L13: 8.3 | M13: 193 | N13: 8.3 | O13: 14.8 | Q13: Maximum: for 1/2 hourly and daily periods use the highest value across all operational combustion lines for the month
A14: Aug | B14: 200 | C14: 9 | D14: 70.2 | E14: 40 | F14: 9 | G14: 14.1 | K14: Aug | L14: 9 | M14: 70.2 | N14: 9 | O14: 14.1
A15: Sep | B15: 200 | C15: 5.8 | D15: 48.7 | E15: 40 | F15: 5.8 | G15: 9.5 | K15: Sep | L15: 5.8 | M15: 48.7 | N15: 5.8 | O15: 9.5
A16: Oct | B16: 200 | C16: 6.6 | D16: 91.1 | E16: 40 | F16: 6.6 | G16: 10.3 | K16: Oct | L16: 6.6 | M16: 91.1 | N16: 6.6 | O16: 10.3
A17: Nov | B17: 200 | C17: 5.8 | D17: 194.4 | E17: 40 | F17: 5.8 | G17: 10.9 | K17: Nov | L17: 5.8 | M17: 194.4 | N17: 5.8 | O17: 10.9
A18: Dec | B18: 200 | C18: 5 | D18: 43.2 | E18: 40 | F18: 5 | G18: 10.8 | K18: Dec | L18: 5 | M18: 43.2 | N18: 5 | O18: 10.8
K19: Annual | L19: =AVERAGE(L7:L18) -> 7 | M19: =MAX(M7:M18) -> 301.9 | N19: =AVERAGE(N7:N18) -> 6.966666667 | O19: =MAX(O7:O18) -> 24.8
A48: Comments :

Sheet NOx
A1: =+'Cover Page'!$B$29 -> Annual Performance Report 2025 | E1: =+'Cover Page'!$B$33 -> SUEZ R&R Kirklees EfW
A3: Monitoring of Oxides of Nitrogen emissions | D3: Whole Installation | G3: See Notes in Cell Q3 | J3: =+A3 -> Monitoring of Oxides of Nitrogen emissions | N3: Per Combustion Line | Q3: Notes:
Q4: User to add logic to complete Whole installation, Table A5:G18. From the data in Per Combustion Line, Table J6:O79, subject to No. of lines installed
A5: =+'Cover Page'!C39 -> 2025 | B5: 1/2 Hourly Reference Periods | E5: Daily Reference Periods
A6: mg/Nm3 | B6: 1/2 hourly NOx ELV | C6: Monthly mean of half-hourly averages | D6: Highest half- hourly average | E6: Daily NOx ELV | F6: Monthly mean of daily averages | G6: Highest daily average | J6: =+A5 -> 2025 | K6: mg/Nm3 | L6: Monthly mean of half-hourly averages | M6: Highest half- hourly average | N6: Monthly mean of daily averages | O6: Highest daily average
A7: Jan | B7: 400 | C7: =AVERAGE(L7,L22,L37,L52,L67) -> 146.1 | D7: =MAX(M7,M22,M37,M52,M67) -> 179.3 | E7: 180 | F7: =AVERAGE(N7,N22,N37,N52,N67) -> 146.1 | G7: =MAX(O7,O22,O37,O52,O67) -> 152.2 | J7: A1 | K7: Jan | L7: 146.1 | M7: 179.3 | N7: 146.1 | O7: 152.2
A8: Feb | B8: 400 | C8: =AVERAGE(L8,L23,L38,L53,L68) -> 150.5 | D8: =MAX(M8,M23,M38,M53,M68) -> 174.9 | E8: 180 | F8: =AVERAGE(N8,N23,N38,N53,N68) -> 150.5 | G8: =MAX(O8,O23,O38,O53,O68) -> 155.4 | K8: Feb | L8: 150.5 | M8: 174.9 | N8: 150.5 | O8: 155.4
A9: Mar | B9: 400 | C9: 150.7 | D9: 179.6 | E9: 180 | F9: 150.7 | G9: 157 | K9: Mar | L9: 150.7 | M9: 179.6 | N9: 150.7 | O9: 157 | Q9: Whole Installation table A5:G18:
A10: Apr | B10: 400 | C10: 147.2 | D10: 186.6 | E10: 180 | F10: 147.2 | G10: 155.2 | K10: Apr | L10: 147.2 | M10: 186.6 | N10: 147.2 | O10: 155.2 | Q10: Mean: for 1/2 hourly and daily periods calculate mean of values across all operational combustion lines for the month
A11: May | B11: 400 | C11: 125.8 | D11: 169.3 | E11: 180 | F11: 125.8 | G11: 143 | K11: May | L11: 125.8 | M11: 169.3 | N11: 125.8 | O11: 143
A12: Jun | B12: 400 | C12: 146.7 | D12: 195 | E12: 180 | F12: 146.7 | G12: 162.7 | K12: Jun | L12: 146.7 | M12: 195 | N12: 146.7 | O12: 162.7
A13: Jul | B13: 400 | C13: 150 | D13: 173.7 | E13: 180 | F13: 150 | G13: 157.8 | K13: Jul | L13: 150 | M13: 173.7 | N13: 150 | O13: 157.8 | Q13: Maximum: for 1/2 hourly and daily periods use the highest value across all operational combustion lines for the month
A14: Aug | B14: 400 | C14: 159.1 | D14: 218.2 | E14: 180 | F14: 159.1 | G14: 167.2 | K14: Aug | L14: 159.1 | M14: 218.2 | N14: 159.1 | O14: 167.2
A15: Sep | B15: 400 | C15: 151.9 | D15: 178.4 | E15: 180 | F15: 151.9 | G15: 162.5 | K15: Sep | L15: 151.9 | M15: 178.4 | N15: 151.9 | O15: 162.5
A16: Oct | B16: 400 | C16: 149 | D16: 187.1 | E16: 180 | F16: 149 | G16: 157 | K16: Oct | L16: 149 | M16: 187.1 | N16: 149 | O16: 157
A17: Nov | B17: 400 | C17: 144.7 | D17: 193.1 | E17: 180 | F17: 144.7 | G17: 154.7 | K17: Nov | L17: 144.7 | M17: 193.1 | N17: 144.7 | O17: 154.7
A18: Dec | B18: 400 | C18: 148.6 | D18: 178.4 | E18: 180 | F18: 148.6 | G18: 158.4 | K18: Dec | L18: 148.6 | M18: 178.4 | N18: 148.6 | O18: 158.4
K19: Annual | L19: =AVERAGE(L7:L18) -> 147.525 | M19: =MAX(M7:M18) -> 218.2 | N19: =AVERAGE(N7:N18) -> 147.525 | O19: =MAX(O7:O18) -> 167.2
A48: Comments :

Sheet TOC
A1: =+'Cover Page'!$B$29 -> Annual Performance Report 2025 | E1: =+'Cover Page'!$B$33 -> SUEZ R&R Kirklees EfW
A3: Monitoring of Total organic carbon emissions | D3: Whole Installation | G3: See Notes in Cell Q3 | J3: =+A3 -> Monitoring of Total organic carbon emissions | N3: Per Combustion Line | Q3: Notes:
Q4: User to add logic to complete Whole installation, Table A5:G18. From the data in Per Combustion Line, Table J6:O79, subject to No. of lines installed
A5: =+'Cover Page'!C39 -> 2025 | B5: 1/2 Hourly Reference Periods | E5: Daily Reference Periods
A6: mg/Nm3 | B6: 1/2 hourly TOC ELV | C6: Monthly mean of half-hourly averages | D6: Highest half- hourly average | E6: Daily TOC ELV | F6: Monthly mean of daily averages | G6: Highest daily average | J6: =+A5 -> 2025 | K6: mg/Nm3 | L6: Monthly mean of half-hourly averages | M6: Highest half- hourly average | N6: Monthly mean of daily averages | O6: Highest daily average
A7: Jan | B7: 20 | C7: =AVERAGE(L7,L22,L37,L52,L67) -> 0.4 | D7: =MAX(M7,M22,M37,M52,M67) -> 9 | E7: 10 | F7: =AVERAGE(N7,N22,N37,N52,N67) -> 0.4 | G7: =MAX(O7,O22,O37,O52,O67) -> 0.6 | J7: A1 | K7: Jan | L7: 0.4 | M7: 9 | N7: 0.4 | O7: 0.6
A8: Feb | B8: 20 | C8: =AVERAGE(L8,L23,L38,L53,L68) -> 0.3 | D8: =MAX(M8,M23,M38,M53,M68) -> 8.8 | E8: 10 | F8: =AVERAGE(N8,N23,N38,N53,N68) -> 0.3 | G8: =MAX(O8,O23,O38,O53,O68) -> 0.6 | K8: Feb | L8: 0.3 | M8: 8.8 | N8: 0.3 | O8: 0.6
A9: Mar | B9: 20 | C9: 0.4 | D9: 10.6 | E9: 10 | F9: 0.4 | G9: 0.8 | K9: Mar | L9: 0.4 | M9: 10.6 | N9: 0.4 | O9: 0.8 | Q9: Whole Installation table A5:G18:
A10: Apr | B10: 20 | C10: 0.5 | D10: 9.3 | E10: 10 | F10: 0.5 | G10: 0.8 | K10: Apr | L10: 0.5 | M10: 9.3 | N10: 0.5 | O10: 0.8 | Q10: Mean: for 1/2 hourly and daily periods calculate mean of values across all operational combustion lines for the month
A11: May | B11: 20 | C11: 0 | D11: 0.9 | E11: 10 | F11: 0 | G11: 0 | K11: May | L11: 0 | M11: 0.9 | N11: 0 | O11: 0
A12: Jun | B12: 20 | C12: 0.2 | D12: 11.9 | E12: 10 | F12: 0.2 | G12: 0.6 | K12: Jun | L12: 0.2 | M12: 11.9 | N12: 0.2 | O12: 0.6
A13: Jul | B13: 20 | C13: 0.7 | D13: 96.7 | E13: 10 | F13: 0.7 | G13: 10.4 | K13: Jul | L13: 0.7 | M13: 96.7 | N13: 0.7 | O13: 10.4 | Q13: Maximum: for 1/2 hourly and daily periods use the highest value across all operational combustion lines for the month
A14: Aug | B14: 20 | C14: 0.4 | D14: 18.2 | E14: 10 | F14: 0.4 | G14: 1.4 | K14: Aug | L14: 0.4 | M14: 18.2 | N14: 0.4 | O14: 1.4
A15: Sep | B15: 20 | C15: 0.3 | D15: 7.7 | E15: 10 | F15: 0.3 | G15: 0.5 | K15: Sep | L15: 0.3 | M15: 7.7 | N15: 0.3 | O15: 0.5
A16: Oct | B16: 20 | C16: 0.6 | D16: 54.6 | E16: 10 | F16: 0.6 | G16: 1.8 | K16: Oct | L16: 0.6 | M16: 54.6 | N16: 0.6 | O16: 1.8
A17: Nov | B17: 20 | C17: 0.4 | D17: 8.4 | E17: 10 | F17: 0.4 | G17: 1 | K17: Nov | L17: 0.4 | M17: 8.4 | N17: 0.4 | O17: 1
A18: Dec | B18: 20 | C18: 0.4 | D18: 7.5 | E18: 10 | F18: 0.4 | G18: 0.5 | K18: Dec | L18: 0.4 | M18: 7.5 | N18: 0.4 | O18: 0.5
K19: Annual | L19: =AVERAGE(L7:L18) -> 0.3833333333 | M19: =MAX(M7:M18) -> 96.7 | N19: =AVERAGE(N7:N18) -> 0.3833333333 | O19: =MAX(O7:O18) -> 10.4
A48: Comments :

Sheet Particulates
A1: =+'Cover Page'!$B$29 -> Annual Performance Report 2025 | E1: =+'Cover Page'!$B$33 -> SUEZ R&R Kirklees EfW
A3: Monitoring of Particulate matter emissions | D3: Whole Installation | G3: See Notes in Cell Q3 | J3: =+A3 -> Monitoring of Particulate matter emissions | N3: Per Combustion Line | Q3: Notes:
A5: =+'Cover Page'!C39 -> 2025 | B5: 1/2 Hourly Reference Periods | E5: Daily Reference Periods | Q5: User to add logic to complete Whole installation, Table A5:G18. From the data in Per Combustion Line, Table J6:O79, subject to No. of lines installed
A6: mg/Nm3 | B6: 1/2 hourly PM ELV | C6: Monthly mean of half-hourly averages | D6: Highest half- hourly average | E6: Daily PM ELV | F6: Monthly mean of daily averages | G6: Highest daily average | J6: =+A5 -> 2025 | K6: mg/Nm3 | L6: Monthly mean of half-hourly averages | M6: Highest half- hourly average | N6: Monthly mean of daily averages | O6: Highest daily average
A7: Jan | B7: 30 | C7: =AVERAGE(L7,L22,L37,L52,L67) -> 4.8 | D7: =MAX(M7,M22,M37,M52,M67) -> 3.1 | E7: 5 | F7: =AVERAGE(N7,N22,N37,N52,N67) -> 4.8 | G7: =MAX(O7,O22,O37,O52,O67) -> 3.8 | J7: A1 | K7: Jan | L7: 4.8 | M7: 3.1 | N7: 4.8 | O7: 3.8
A8: Feb | B8: 30 | C8: =AVERAGE(L8,L23,L38,L53,L68) -> 2.5 | D8: =MAX(M8,M23,M38,M53,M68) -> 4.2 | E8: 5 | F8: =AVERAGE(N8,N23,N38,N53,N68) -> 2.5 | G8: =MAX(O8,O23,O38,O53,O68) -> 2.9 | K8: Feb | L8: 2.5 | M8: 4.2 | N8: 2.5 | O8: 2.9
A9: Mar | B9: 30 | C9: 2.6 | D9: 4.4 | E9: 5 | F9: 2.6 | G9: 3.5 | K9: Mar | L9: 2.6 | M9: 4.4 | N9: 2.6 | O9: 3.5
A10: Apr | B10: 30 | C10: 2.7 | D10: 4.5 | E10: 5 | F10: 2.7 | G10: 3.2 | K10: Apr | L10: 2.7 | M10: 4.5 | N10: 2.7 | O10: 3.2 | Q10: Whole Installation table A5:G18:
A11: May | B11: 30 | C11: 2.6 | D11: 5.5 | E11: 5 | F11: 2.6 | G11: 3.1 | K11: May | L11: 2.6 | M11: 5.5 | N11: 2.6 | O11: 3.1 | Q11: Mean: for 1/2 hourly and daily periods calculate mean of values across all operational combustion lines for the month
A12: Jun | B12: 30 | C12: 2.9 | D12: 9 | E12: 5 | F12: 2.9 | G12: 3.7 | K12: Jun | L12: 2.9 | M12: 9 | N12: 2.9 | O12: 3.7
A13: Jul | B13: 30 | C13: 3.1 | D13: 15.8 | E13: 5 | F13: 3.1 | G13: 4.5 | K13: Jul | L13: 3.1 | M13: 15.8 | N13: 3.1 | O13: 4.5
A14: Aug | B14: 30 | C14: 3 | D14: 11 | E14: 5 | F14: 3 | G14: 3.4 | K14: Aug | L14: 3 | M14: 11 | N14: 3 | O14: 3.4 | Q14: Maximum: for 1/2 hourly and daily periods use the highest value across all operational combustion lines for the month
A15: Sep | B15: 30 | C15: 2.8 | D15: 4.2 | E15: 5 | F15: 2.8 | G15: 3.1 | K15: Sep | L15: 2.8 | M15: 4.2 | N15: 2.8 | O15: 3.1
A16: Oct | B16: 30 | C16: 2.4 | D16: 5.8 | E16: 5 | F16: 2.4 | G16: 3.2 | K16: Oct | L16: 2.4 | M16: 5.8 | N16: 2.4 | O16: 3.2
A17: Nov | B17: 30 | C17: 2.1 | D17: 3.2 | E17: 5 | F17: 2.1 | G17: 2.3 | K17: Nov | L17: 2.1 | M17: 3.2 | N17: 2.1 | O17: 2.3
A18: Dec | B18: 30 | C18: 2.3 | D18: 3.7 | E18: 5 | F18: 2.3 | G18: 2.5 | K18: Dec | L18: 2.3 | M18: 3.7 | N18: 2.3 | O18: 2.5
K19: Annual | L19: =AVERAGE(L7:L18) -> 2.816666667 | M19: =MAX(M7:M18) -> 15.8 | N19: =AVERAGE(N7:N18) -> 2.816666667 | O19: =MAX(O7:O18) -> 4.5
A48: Comments :

Sheet CO 95% 10 min
A1: =+'Cover Page'!$B$29 -> Annual Performance Report 2025 | E1: =+'Cover Page'!$B$33 -> SUEZ R&R Kirklees EfW
A3: Monitoring of Carbon Monoxide (10-minute avg) | E3: Whole Installation | H3: See Notes in Cell S3 | J3: =+A3 -> Monitoring of Carbon Monoxide (10-minute avg) | O3: Per Combustion Line | Q3: Notes: | S3: Notes:
A5: Please complete this tab for your plant if you have 10-minute average CO ELVs; otherwise, leave it blank and complete the CO 0.5 hourly tab
S7: User to add logic to complete Whole installation, Table A5:H18. From the data in Per Combustion Line, Table K6:Q79, subject to No. of lines installed
A8: =+'Cover Page'!C39 -> 2025 | B8: 10-minute Reference Periods | F8: Daily Reference Periods
A9: mg/Nm3 | B9: 95%ile 10-min avg CO ELV | C9: Highest daily 95%ile 10-min average | D9: Monthly mean of 10-min averages | E9: Highest 10-min average | F9: Daily CO ELV | G9: Monthly mean of daily averages | H9: Highest daily average | K9: =+A8 -> 2025 | L9: mg/Nm3 | M9: Highest daily 95%ile 10-min average | N9: Monthly mean of 10-min averages | O9: Highest 10-min average | P9: Monthly mean of daily averages | Q9: Highest daily average
A10: Jan | B10: 150 | C10: =AVERAGE(M10,M25,M40,M55,M70) -> 115.6 | D10: =AVERAGE(N10,N25,N40,N55,N70) -> 34.3 | E10: =MAX(O10,O25,O40,O55,O70) -> 491.8 | F10: 50 | G10: =AVERAGE(P10,P25,P40,P55,P70) -> 34.3 | H10: =AVERAGE(Q10,Q25,Q40,Q55,Q70) -> 42.9 | K10: A1 | L10: Jan | M10: 115.6 | N10: 34.3 | O10: 491.8 | P10: 34.3 | Q10: 42.9
A11: Feb | B11: =+B10 -> 150 | C11: =AVERAGE(M11,M26,M41,M56,M71) -> 104.2 | D11: 32.2 | E11: =MAX(O11,O26,O41,O56,O71) -> 752.7 | F11: =+F10 -> 50 | G11: =AVERAGE(P11,P26,P41,P56,P71) -> 32.2 | H11: 43.9 | L11: Feb | M11: 104.2 | N11: 32.2 | O11: 752.7 | P11: 32.2 | Q11: 43.9
A12: Mar | B12: =+B11 -> 150 | C12: =AVERAGE(M12,M27,M42,M57,M72) -> 97.6 | D12: 30.2 | E12: 855.6 | F12: =+F11 -> 50 | G12: =AVERAGE(P12,P27,P42,P57,P72) -> 30.2 | H12: 38.6 | L12: Mar | M12: 97.6 | N12: 30.2 | O12: 855.6 | P12: 30.2 | Q12: 38.6 | S12: Whole Installation table A5:H18:
A13: Apr | B13: 150 | C13: =AVERAGE(M13,M28,M43,M58,M73) -> 120.2 | D13: 34 | E13: 13.1 | F13: 50 | G13: =AVERAGE(P13,P28,P43,P58,P73) -> 34 | H13: 0.8 | L13: Apr | M13: 120.2 | N13: 34 | O13: 13.1 | P13: 34 | Q13: 0.8 | S13: Mean: for 10-min and daily periods use average of all operational combustion lines.
A14: May | B14: 150 | C14: =AVERAGE(M14,M29,M44,M59,M74) -> 104.7 | D14: 20.2 | E14: 387.1 | F14: 50 | G14: =AVERAGE(P14,P29,P44,P59,P74) -> 20.2 | H14: 31.3 | L14: May | M14: 104.7 | N14: 20.2 | O14: 387.1 | P14: 20.2 | Q14: 31.3
A15: Jun | B15: 150 | C15: =AVERAGE(M15,M30,M45,M60,M75) -> 98.1 | D15: 24 | E15: 195 | F15: 50 | G15: =AVERAGE(P15,P30,P45,P60,P75) -> 24 | H15: 162.7 | L15: Jun | M15: 98.1 | N15: 24 | O15: 195 | P15: 24 | Q15: 162.7
A16: Jul | B16: 150 | C16: =AVERAGE(M16,M31,M46,M61,M76) -> 113.5 | D16: 31.2 | E16: 873.5 | F16: 50 | G16: =AVERAGE(P16,P31,P46,P61,P76) -> 31.2 | H16: 41.6 | L16: Jul | M16: 113.5 | N16: 31.2 | O16: 873.5 | P16: 31.2 | Q16: 41.6 | S16: Maximum: for 10-min and daily periods use the highest of all operational combustion lines in any month.
A17: Aug | B17: 150 | C17: =AVERAGE(M17,M32,M47,M62,M77) -> 108.2 | D17: 24 | E17: 629.7 | F17: 50 | G17: =AVERAGE(P17,P32,P47,P62,P77) -> 24 | H17: 41.1 | L17: Aug | M17: 108.2 | N17: 24 | O17: 629.7 | P17: 24 | Q17: 41.1
A18: Sep | B18: 150 | C18: =AVERAGE(M18,M33,M48,M63,M78) -> 89.6 | D18: 27.5 | E18: 455.2 | F18: 50 | G18: =AVERAGE(P18,P33,P48,P63,P78) -> 27.5 | H18: 38.4 | L18: Sep | M18: 89.6 | N18: 27.5 | O18: 455.2 | P18: 27.5 | Q18: 38.4
A19: Oct | B19: 150 | C19: =AVERAGE(M19,M34,M49,M64,M79) -> 99.8 | D19: 31 | E19: 490.8 | F19: 50 | G19: =AVERAGE(P19,P34,P49,P64,P79) -> 31 | H19: 37.8 | L19: Oct | M19: 99.8 | N19: 31 | O19: 490.8 | P19: 31 | Q19: 37.8
A20: Nov | B20: 150 | C20: =AVERAGE(M20,M35,M50,M65,M80) -> 112 | D20: 34.3 | E20: 488.6 | F20: 50 | G20: =AVERAGE(P20,P35,P50,P65,P80) -> 34.3 | H20: 49 | L20: Nov | M20: 112 | N20: 34.3 | O20: 488.6 | P20: 34.3 | Q20: 49
A21: Dec | B21: 150 | C21: =AVERAGE(M21,M36,M51,M66,M81) -> 106.6 | D21: 28.2 | E21: 613 | F21: 50 | G21: =AVERAGE(P21,P36,P51,P66,P81) -> 28.2 | H21: 40.2 | L21: Dec | M21: 106.6 | N21: 28.2 | O21: 613 | P21: 28.2 | Q21: 40.2
L22: Annual | M22: =AVERAGE(M10:M21) -> 105.8416667 | O22: =MAX(O10:O21) -> 873.5 | P22: =AVERAGE(P10:P21) -> 29.25833333 | Q22: =MAX(Q10:Q21) -> 162.7
A51: Comments :
A52: Environment Agency explanatory note: The 10-minute average ELV is based on the “95th percentile”. In this case this means that 95% of the 10 minute averages in the relevant 24-hour period (i.e. 137) must be below 150 mg/Nm3, and 5% (i.e. 7) are allowed to be any value above 150 mg/Nm3. Whilst we expect operators to minimise CO emissions at all times, it is perfectly acceptable for the value of the maximum 10-minute average to be above 150 mg/Nm3, provided the 95th percentile ELV has been met for that period.

Sheet NH3
A1: =+'Cover Page'!$B$29 -> Annual Performance Report 2025 | E1: =+'Cover Page'!$B$33 -> SUEZ R&R Kirklees EfW
A3: Monitoring of Ammnonia emissions | D3: Whole Installation | G3: See Notes in Cell Q3 | J3: =+A3 -> Monitoring of Ammnonia emissions | N3: Per Combustion Line | Q3: Notes:
Q4: User to add logic to complete Whole installation, Table A5:G18. From the data in Per Combustion Line, Table J6:O79, subject to No. of lines installed
A5: =+'Cover Page'!C39 -> 2025 | B5: 1/2 Hourly Reference Periods | E5: Daily Reference Periods
A6: mg/Nm3 | B6: 1/2 hourly NH3 ELV | C6: Monthly mean of half-hourly averages | D6: Highest half- hourly average | E6: Daily NH3 ELV | F6: Monthly mean of daily averages | G6: Highest daily average | J6: =+A5 -> 2025 | K6: mg/Nm3 | L6: Monthly mean of half-hourly averages | M6: Highest half- hourly average | N6: Monthly mean of daily averages | O6: Highest daily average
A7: Jan | B7: None | C7: =AVERAGE(L7,L22,L37,L52,L67) -> 0.8 | D7: =MAX(M7,M22,M37,M52,M67) -> 11.7 | E7: 15 | F7: =AVERAGE(N7,N22,N37,N52,N67) -> 0.8 | G7: =MAX(O7,O22,O37,O52,O67) -> 1.4 | J7: A1 | K7: Jan | L7: 0.8 | M7: 11.7 | N7: 0.8 | O7: 1.4
A8: Feb | B8: =+B7 -> None | C8: =AVERAGE(L8,L23,L38,L53,L68) -> 0.5 | D8: =MAX(M8,M23,M38,M53,M68) -> 2.8 | E8: 15 | F8: =AVERAGE(N8,N23,N38,N53,N68) -> 0.5 | G8: =MAX(O8,O23,O38,O53,O68) -> 0.7 | K8: Feb | L8: 0.5 | M8: 2.8 | N8: 0.5 | O8: 0.7
A9: Mar | B9: =+B8 -> None | C9: 0.5 | D9: 5 | E9: 15 | F9: 0.5 | G9: 0.9 | K9: Mar | L9: 0.5 | M9: 5 | N9: 0.5 | O9: 0.9 | Q9: Whole Installation table A5:G18:
A10: Apr | B10: None | C10: 0.5 | D10: 13.1 | E10: 15 | F10: 0.5 | G10: 0.8 | K10: Apr | L10: 0.5 | M10: 13.1 | N10: 0.5 | O10: 0.8 | Q10: Mean: for 1/2 hourly and daily periods calculate mean of values across all operational combustion lines for the month
A11: May | B11: None | C11: 79.4 | D11: 4 | E11: 15 | F11: 79.4 | G11: 21.4 | K11: May | L11: 79.4 | M11: 4 | N11: 79.4 | O11: 21.4
A12: Jun | B12: None | C12: 0.7 | D12: 17.2 | E12: 15 | F12: 0.7 | G12: 1.1 | K12: Jun | L12: 0.7 | M12: 17.2 | N12: 0.7 | O12: 1.1
A13: Jul | B13: None | C13: 0.5 | D13: 25.9 | E13: 15 | F13: 0.5 | G13: 3.3 | K13: Jul | L13: 0.5 | M13: 25.9 | N13: 0.5 | O13: 3.3 | Q13: Maximum: for 1/2 hourly and daily periods use the highest value across all operational combustion lines for the month
A14: Aug | B14: None | C14: 0.6 | D14: 5.6 | E14: 15 | F14: 0.6 | G14: 1 | K14: Aug | L14: 0.6 | M14: 5.6 | N14: 0.6 | O14: 1
A15: Sep | B15: None | C15: 0.5 | D15: 3 | E15: 15 | F15: 0.5 | G15: 0.8 | K15: Sep | L15: 0.5 | M15: 3 | N15: 0.5 | O15: 0.8
A16: Oct | B16: None | C16: 0.6 | D16: 10 | E16: 15 | F16: 0.6 | G16: 1.7 | K16: Oct | L16: 0.6 | M16: 10 | N16: 0.6 | O16: 1.7
A17: Nov | B17: None | C17: 0.6 | D17: 7.3 | E17: 15 | F17: 0.6 | G17: 1.4 | K17: Nov | L17: 0.6 | M17: 7.3 | N17: 0.6 | O17: 1.4
A18: Dec | B18: None | C18: 0.5 | D18: 9.9 | E18: 15 | F18: 0.5 | G18: 1.1 | K18: Dec | L18: 0.5 | M18: 9.9 | N18: 0.5 | O18: 1.1
K19: Annual | L19: =AVERAGE(L7:L18) -> 7.141666667 | M19: =MAX(M7:M18) -> 25.9 | N19: =AVERAGE(N7:N18) -> 7.141666667 | O19: =MAX(O7:O18) -> 21.4
A48: Comments :
A49: An indicated ELV value of zero in the table above means that no ammonia limit is/was set in the permit.

Sheet Template changes log
A1: Log of changes to template (Environment Agency use only)
A3: Date | B3: Description of change | C3: New version number and date
A4: 2024-01-16 | B4: Air (periodic) tab: corrected default O2 reference from 6 to 11% | C4: Version 23.5a (for incinerators) - 16/01/2024
A5: 2024-09-23 | B5: Air (periodic) tab: corrected symbol for Thallium to Tl
A6: 2024-09-23 | B6: Air (periodic) tab: removed last year's references to different emission limit values applying from 03/12/23 and updated all relevant ELVs
A7: 2024-09-23 | B7: Tabs for continuously monitored pollutants (HCl, SO2 etc.): changed terminology in table headings to improve clarity
A8: 2024-09-23 | B8: Tabs for continuously monitored pollutants (HCl, SO2 etc.): removed last year's references to different emission limit values applying from 03/12/23 and updated all relevant ELVs
A9: 2024-09-23 | B9: Perf 1 tab: updated formula for water usage to report m3 rather than litres and corrected error with formula copying operator name
A10: 2024-09-23 | B10: Operational Summary tab: table added on start-ups and shut-downs
A11: 2024-09-23 | B11: Operational Summary tab: table added on dioxins and mercury protocols
A12: 2024-09-23 | B12: Operational Summary tab: table added on AST, QAL 2 and calibration functions
A13: 2024-09-23 | B13: CO2 N2O tab: various changes made to notes to reflect the fact that most plants should now have calibrated CEMS and flow meters + some have C14 samplers and more up to date industry data | C13: Version 24a (for incinerators) - 23/09/24
A14: 2024-11-08 | B14: CO2 N2O tab: Changed the N2O CO2 equivalence factor from 298 to 265 in line with recently updated government greenhouse gas figures: https://www.gov.uk/government/publications/greenhouse-gas-reporting-conversion-factors-2024
A15: 2024-11-08 | B15: CO2 N2O tab: Added an additional requirement for municipal EfW plants to state the yearly average biogenic percentage of the waste by mass, and reference to a document which sets out a methodology for calculating NCV of waste from the results of C14 sampling.
A16: 2024-11-08 | B16: Permit Compliance tab: Two additional columns added + explanatory notes to the table entitled "Summary of non-compliances under the permit" to allow CCS scores to be stated where relevant.
A17: 2024-11-08 | B17: Residue Quality tab: Note added explaining application of TOC and LOI limits and asking operators to report both metrics where measured. | C17: Version 24.1a (for incinerators) - 08/11/24
A18: 2024-11-27 | B18: Operational Summary tab: table added on start-ups and shut-downs | C18: Version 24.2a (for incinerators) - 27/11/24
A19: 2025-11-27 | B19: Cover Page: Print as PDF and Print Report and pdf buttons deleted and blank columns removed; contents page deleted | C19: Version 25.1a (for incinerators) - 27/11/25
A20: 2025-11-27 | B20: Residue Quality tab renamed to "Residues", and Summary of residue handling table moved from Operational Summary tab to Residues tab.
A21: 2025-11-27 | B21: Various changes made to the Operational Data tab including • Reformatting of the rows under the Operational data heading (Rows 3-8) to make it clearer what information is required. • Amendment of the rows under the Energy Usage / Export heading (Rows 26-32) to calculate an “indicative parasitic load” (now excluding energy imported) • Amendment of the unit for gas usage from cubic feet to cubic metres (Row 50) • Some amendments to the first 2 notes and other minor edits • Deleted "Overall Availability, mean avg. of all lines, hrs" row
A22: 2025-11-27 | B22: Operational Summary tab: Note added requiring all emergency shut-downs be listed, irrespective of whether or not they were reportable.
A23: 2025-11-27 | B23: CO2 N2O tab: Note added to ask operators to ensure that relevant data reported here matches that which will be submitted under the Pollution Inventory
